Cogmind - Beta 13 X2 @@@ ROGUE MODE // 2024.01.28 @ 23:34:51 Player: Jezoensis Result: Escaped! Performance ------------- Evolutions (9) 4500 Regions Visited (27) 5400 Robots Destroyed (356) 1780 Value Destroyed (19282) 19282 Prototype IDs (38) 760 Alien Tech Used (0) 0 Bonus (18774) 18774 TOTAL SCORE: 50496 Bonus ------- High Alert Combat Kills 4484 Follower Combat Kills 3793 Entered Garrisons 1800 Used RIF Installer 5500 Entered DSFs 500 Aligned with FarCom 300 Win 3000 Friendly Fire -603 Cogmind --------- Core Integrity 1586/1600 Matter 194/300 Energy 337/350 System Corruption 0% Temperature Cool (7) Movement Treading (165) Location To Epsilon Eridani Parts ------- > --- POWER (1) -------- Quantum Reactor > --- PROPULSION (4) --- Improved Heavy Treads Armored Heavy Treads > --- UTILITY (16) ----- High-capacity Storage Unit Enhanced Optical Array Terrain Scanner Advanced Terrain Scan Processor Advanced Targeting Computer Advanced Targeting Computer Focal Shield Thermal Shield Relay Coupler [NC] (21) Relay Coupler [Swarmer] (19) Relay Coupler [Grunt] (26) Relay Coupler [Sentry] (11) Relay Coupler [Hunter] (19) Relay Coupler [Heavy] (1) Relay Coupler [Behemoth] (10) Drone Bay (2/2) > --- WEAPON (4) ------- Tri-rail Accelerator Heavy Linear Accelerator > --- INVENTORY (20) --- Quantum Reactor Improved Heavy Treads Armored Heavy Treads Matter Compressor (196) Relay Coupler [NC] (30) Relay Coupler [Grunt] (30) Relay Coupler [Sentry] (24) Relay Coupler [Hunter] (14) Long-range Tractor Beam Compact HERF Cannon Enhanced Nova Cannon Heavy Machine Gun KE Penetrator Heavy Linear Accelerator Micro-nuke Launcher Micro-nuke Launcher Advanced Remote Datajack Peak State ------------ > --- POWER ------------ Quantum Reactor > --- PROPULSION ------- Improved Heavy Treads Armored Heavy Treads > --- UTILITY ---------- High-capacity Storage Unit Matter Compressor Enhanced Optical Array Terrain Scanner Advanced Terrain Scan Processor Advanced Targeting Computer Advanced Targeting Computer Focal Shield Thermal Shield Relay Coupler [NC] Relay Coupler [Swarmer] Relay Coupler [Grunt] Relay Coupler [Sentry] Relay Coupler [Hunter] Relay Coupler [Heavy] Relay Coupler [Behemoth] > --- WEAPON ----------- Tri-rail Accelerator Heavy Linear Accelerator > --- INVENTORY -------- Quantum Reactor Improved Heavy Treads Armored Heavy Treads Relay Coupler [NC] Relay Coupler [Grunt] Relay Coupler [Sentry] Relay Coupler [Hunter] Long-range Tractor Beam Compact HERF Cannon Compact HERF Cannon Enhanced Nova Cannon Heavy Machine Gun KE Penetrator Heavy Linear Accelerator Micro-nuke Launcher Micro-nuke Launcher Advanced Remote Datajack [Rating: 141] Favorites ----------- Power Neutrino Core Engine Cooled Deuterium Engine Power Core Neutrino Core Reactor Quantum Reactor Propulsion Heavy Treads Treads Heavy Treads Leg Potential Leg Wheel Wheel Utility High-capacity Storage Unit Device Seismic Detector Storage High-capacity Storage Unit Processor Improved Terrain Scan Processor Hackware Relay Coupler [NC] Protection Improved Medium Armor Plating Weapon KE Penetrator Energy Gun Advanced Beam Rifle Energy Cannon Compact HERF Cannon Ballistic Gun KE Penetrator Ballistic Cannon Heavy Linear Accelerator Launcher Micro-nuke Launcher Special Weapon Improved Remote Datajack Slashing Weapon Axe Build | -11 -10 -10 -9 -9 -9 -8 -8 -8 -8 -8 -7 -7 -7 -7 -6 -6 -5 -5 -4 -4 -4 -4 -3 -3 -2 -2 -1 ------- Run | Yrd Mat Min Mat Min Exi Min Mat Gar Mat Gar Fac Gar Fac Gar Fac Gar Fac Gar Fac Gar Fac Gar Res Gar Res DSF Acc Slots Evolved 18 | . . . 2 . . . 2 . . . 2 . . . 2 . 2 . 2 . . . 2 . 2 . 2 Power . | . . . . . . . . . . . . . . . . . . . . . . . . . . . . Propulsion 2 | . . . 1 . . . . . . . . . . . 1 . . . . . . . . . . . . Utility 14 | . . . 1 . . . 2 . . . 1 . . . 1 . 1 . 2 . . . 2 . 2 . 2 Weapon 2 | . . . . . . . . . . . 1 . . . . . 1 . . . . . . . . . . Parts Attached 601 | 9 13 5 51 16 1 3 20 35 22 33 23 29 16 22 12 31 36 15 20 35 16 48 21 33 . 17 19 Power 22 | 1 1 . 2 . . 1 1 . . 2 2 1 . . . 1 4 . . 1 . 3 1 1 . . . Engine 11 | 1 1 . . . . 1 1 . . 2 2 1 . . . 1 1 . . . . . . . . . . Core 6 | . . . 2 . . . . . . . . . . . . . 3 . . 1 . . . . . . . Reactor 5 | . . . . . . . . . . . . . . . . . . . . . . 3 1 1 . . . Propulsion 93 | 4 8 5 7 8 . . 5 4 4 7 1 1 4 2 1 3 5 . . 6 1 6 3 4 . 3 1 Treads 47 | . 3 1 4 3 . . 1 . 2 3 1 1 . . 1 1 4 . . 6 1 4 3 4 . 3 1 Leg 21 | . . . . . . . 1 3 2 4 . . 4 2 . 2 1 . . . . 2 . . . . . Wheel 25 | 4 5 4 3 5 . . 3 1 . . . . . . . . . . . . . . . . . . . Hover . | . . . . . . . . . . . . . . . . . . . . . . . . . . . . Flight . | . . . . . . . . . . . . . . . . . . . . . . . . . . . . Utility 250 | 2 1 . 17 5 1 1 9 16 9 8 9 15 6 8 4 14 12 5 9 12 13 26 5 16 . 13 14 Device 150 | 1 1 . 15 5 . 1 5 11 2 1 5 10 4 6 4 11 6 4 5 7 10 18 2 8 . 1 7 Storage 9 | 1 . . 1 . 1 . . . 1 . . . . . . . . . . . . 2 . 1 . 1 1 Processor 19 | . . . 1 . . . 3 2 1 1 1 . 1 . . . 1 . . 1 1 1 . 1 . 2 2 Hackware 40 | . . . . . . . . 1 2 3 2 4 1 2 . 3 1 1 2 . 2 3 2 . . 8 3 Protection 32 | . . . . . . . 1 2 3 3 1 1 . . . . 4 . 2 4 . 2 1 6 . 1 1 Artifact . | . . . . . . . . . . . . . . . . . . . . . . . . . . . . Weapon 236 | 2 3 . 25 3 . 1 5 15 9 16 11 12 6 12 7 13 15 10 11 16 2 13 12 12 . 1 4 Energy Gun 15 | . 1 . 11 1 . . 1 1 . . . . . . . . . . . . . . . . . . . Energy Cannon 16 | . . . 2 . . . . . . . . 1 1 2 1 . . . . 1 1 3 2 2 . . . Ballistic Gun 76 | 2 1 . 4 . . . 1 4 4 9 5 5 4 3 4 7 11 4 1 7 . . . . . . . Ballistic Cannon 24 | . . . 3 . . 1 . 3 . . . . . . . . . . 2 1 . 3 5 4 . . 2 Launcher 44 | . . . 1 2 . . 1 5 2 1 . 2 . 4 2 4 . 3 2 2 1 6 1 5 . . . Special Weapon 40 | . 1 . 2 . . . . 1 3 1 2 3 1 3 . 2 2 2 4 4 . 1 4 1 . 1 2 Impact Weapon . | . . . . . . . . . . . . . . . . . . . . . . . . . . . . Slashing Weapon 21 | . . . 2 . . . 2 1 . 5 4 1 . . . . 2 1 2 1 . . . . . . . Piercing Weapon . | . . . . . . . . . . . . . . . . . . . . . . . . . . . . Special Melee Weapon . | . . . . . . . . . . . . . . . . . . . . . . . . . . . . Unidentified Prototypes 11 | . . . 4 1 . . . . . . 2 . . . . . 2 . . . 1 . 1 . . . . Corrupted Parts 2 | . . . . . . . . . . . . . . . . . . . . . . 2 . . . . . System Corruption 7 | . . . . . . . . . . . . . . . . . . . . . . 7 . . . . . Parts Lost 53 | . 4 . 3 . . 1 . 2 . 4 . 2 . . . . 4 1 1 10 . 15 . 4 . 1 1 Power 9 | . 1 . 1 . . 1 . . . 1 . . . . . . 1 . . 1 . 2 . 1 . . . Propulsion 12 | . 2 . 2 . . . . 1 . 1 . . . . . . 1 . . 2 . 3 . . . . . Utility 20 | . 1 . . . . . . . . 2 . 1 . . . . . . . 5 . 7 . 2 . 1 1 Weapon 12 | . . . . . . . . 1 . . . 1 . . . . 2 1 1 2 . 3 . 1 . . . Highest Loss Streak 10 | . 2 . 1 . . 1 . 1 . 3 . 2 . . . . 4 1 1 5 . 10 . 3 . 1 1 To Critical Strikes 2 | . . . . . . . . . . . . 1 . . . . . . . . . 1 . . . . . Average Slot Usage (%) 90 | . 97 100 99 100 100 100 95 89 97 98 99 91 97 99 100 96 93 93 93 86 83 74 79 81 78 77 78 Engine 3 | . 14 14 1 . . 3 9 9 9 9 6 7 7 7 6 6 . . . . . . . . . . . Core 2 | . . . 9 11 11 7 . . . . . . . . . . 4 5 5 4 5 2 . . . . . Treads 10 | . 4 2 11 11 11 11 8 8 3 5 7 15 5 . 6 9 11 17 15 12 10 9 14 12 13 9 8 Leg 4 | . . . . . . . . . 21 21 15 . 15 23 20 12 4 . . . . . . . . . . Wheel 3 | . 22 25 21 21 22 22 15 8 . . . . . . . . . . . . . . . . . . . Device 7 | . 12 14 11 11 11 11 9 8 2 2 5 12 8 7 13 7 7 11 9 3 8 7 4 3 4 1 7 Storage 6 | . 14 14 11 11 11 11 9 9 9 9 7 7 7 7 6 6 5 5 5 5 5 4 4 4 4 4 7 Processor 18 | . . . 11 11 11 11 23 24 27 26 22 15 21 23 20 20 17 17 15 17 21 23 19 18 17 16 16 Hackware 9 | . . . . . . . . . 4 . 8 6 7 6 6 11 13 11 15 17 16 9 15 19 17 21 23 Protection 1 | . . . . . . . 2 3 1 6 . 3 . . . . . . 5 4 . 1 4 4 4 4 2 Energy Gun 1 | . 6 14 7 10 11 11 4 8 . . . . . . . . . . . . . . . . . . . Energy Cannon 1 | . . . 2 . . . . . . . . 1 2 . . . . . . 1 4 3 4 1 4 4 1 Ballistic Gun 8 | . 21 14 4 . . . 1 2 12 14 13 17 13 16 17 18 20 18 17 10 . . . . . . . Ballistic Cannon 2 | . . . 6 5 . 9 9 4 . . . . . . . . . . . 1 5 5 4 6 4 4 6 Special Weapon 1 | . . . . . . . . . 3 . 4 2 6 2 1 . 1 3 . 3 5 1 1 . . 3 1 Naked Turns . | . . . . . . . . . . . . . . . . . . . . . . . . . . . . Heaviest Build 129 | 13 14 14 34 32 32 34 45 47 67 68 68 79 71 74 73 79 83 81 88 119 101 129 117 123 114 122 129 Greatest Support 150 | 32 32 26 26 26 22 22 28 60 70 75 60 98 98 85 85 90 145 116 116 150 145 150 126 145 126 150 150 Greatest Overweight (x) 1 | . . 1 1 1 1 1 1 1 1 1 1 . 1 . . . . . . . . . . . . . . Average Overweight (x) . | . . . . 1 1 1 1 . . . . . . . . . . . . . . . . . . . . Largest Inventory Capacity 20 | 8 8 8 15 15 15 15 15 15 20 20 20 20 20 20 20 20 20 20 20 20 20 20 20 20 20 20 20 Average Capacity 18 | 6 8 8 13 15 15 15 15 15 19 20 20 20 20 20 20 20 20 20 20 20 20 19 20 20 20 20 20 Most Carried 20 | 8 8 8 15 15 15 15 15 15 20 20 20 20 20 20 20 20 20 20 20 20 20 20 19 20 20 20 20 Average Carried 17 | 4 7 7 12 14 14 14 14 14 17 18 19 19 19 19 19 19 19 19 19 18 19 15 16 19 20 19 18 Final Capacity 20 | 8 8 8 15 15 15 15 15 15 20 20 20 20 20 20 20 20 20 20 20 20 20 20 20 20 20 20 20 Final Carried 20 | 8 8 8 15 15 15 15 15 15 19 20 20 20 20 20 20 20 20 20 20 20 19 17 17 20 20 20 20 Class Distribution -------------------- 33% | Botlord-Skirmisher 17% | Skirmisher 16% | Mutant 7% | Scavenger-Mutant 6% | Scavenger-Skirmisher 4% | Botlord-Gunner 4% | Bothacker-Skirmisher Dominant Class ---------------- Mutant | -10/Materials Mutant | -10/Mines Mutant | -9/Materials Scavenger-Mutant | -9/Mines Scavenger-Mutant | -9/Exiles Scavenger-Skirmisher | -8/Mines Scavenger-Skirmisher | -8/Materials Mutant | -8/Garrison Mutant | -8/Materials Mutant | -8/Garrison Bothacker-Assassin | -7/Factory Skirmisher | -7/Garrison Skirmisher | -7/Factory Skirmisher | -7/Garrison Skirmisher | -6/Factory Botlord-Skirmisher | -6/Garrison Botlord-Skirmisher | -5/Factory Botlord-Skirmisher | -5/Garrison Botlord-Skirmisher | -4/Factory Gunner | -4/Garrison Botlord-Gunner | -4/Factory Botlord-Skirmisher | -4/Garrison Botlord-Skirmisher | -3/Research Botlord-Skirmisher | -3/Garrison Botlord-Skirmisher | -2/Research Botlord-Skirmisher | -2/DSF Botlord-Skirmisher | -1/Access Resources | -11 -10 -10 -9 -9 -9 -8 -8 -8 -8 -8 -7 -7 -7 -7 -6 -6 -5 -5 -4 -4 -4 -4 -3 -3 -2 -2 -1 ----------- Run | Yrd Mat Min Mat Min Exi Min Mat Gar Mat Gar Fac Gar Fac Gar Fac Gar Fac Gar Fac Gar Fac Gar Res Gar Res DSF Acc Matter Collected 16366 | 338 235 92 1041 379 10 37 123 790 426 955 262 756 419 568 244 805 1297 458 771 1386 390 1606 808 1297 . 211 662 Remotely 4650 | . . . . . . . . . . . . . . . . 515 665 37 270 661 224 731 496 660 . . 391 Salvage Created 13134 | 114 348 92 1422 177 . 41 221 537 423 966 116 513 164 374 69 603 922 777 522 1389 435 1111 334 1049 . 14 401 Parts 739 | 10 22 6 93 14 . 1 21 40 34 60 6 27 8 29 5 41 54 30 31 60 26 41 15 46 . . 19 Haulers Intercepted 5 | . . . 4 . . . . . 1 . . . . . . . . . . . . . . . . . . Recyclers Shooed 11 | 1 1 3 . . . 1 . . 1 . . . . . . . 2 . . . 1 . 1 . . . . Parts Field Recycled . | . . . . . . . . . . . . . . . . . . . . . . . . . . . . Retrieved Matter . | . . . . . . . . . . . . . . . . . . . . . . . . . . . . Parts Self-Destructed . | . . . . . . . . . . . . . . . . . . . . . . . . . . . . Prevented . | . . . . . . . . . . . . . . . . . . . . . . . . . . . . Kills | -11 -10 -10 -9 -9 -9 -8 -8 -8 -8 -8 -7 -7 -7 -7 -6 -6 -5 -5 -4 -4 -4 -4 -3 -3 -2 -2 -1 ------- Run | Yrd Mat Min Mat Min Exi Min Mat Gar Mat Gar Fac Gar Fac Gar Fac Gar Fac Gar Fac Gar Fac Gar Res Gar Res DSF Acc Combat Hostiles Destroyed 309 | . 9 3 27 8 . 1 5 28 11 21 1 16 3 15 1 19 14 15 8 19 6 31 8 32 . . 8 Melee 1 | . . . 1 . . . . . . . . . . . . . . . . . . . . . . . . Guns 133 | . 9 3 18 2 . 1 3 6 5 17 1 9 2 9 1 8 13 4 5 17 . . . . . . . Cannons 72 | . . . 5 2 . . . 4 . . . 1 1 . . . . . . . 4 24 8 15 . . 8 AOE 95 | . . . 3 4 . . 2 17 6 4 . 6 . 6 . 11 1 8 3 2 2 3 . 17 . . . Classes Destroyed 21 | 2 3 1 4 2 . . . 2 . 3 . . . . 1 . . . . 2 . . . . . . 1 Worker 10 | . 1 . 2 . . . . . 3 . 1 . . . . . . . 1 . 1 . 1 . . . . Builder 14 | . . 2 3 . . . 2 . . . . . . . . . . . 2 . 3 . . . . . 2 Tunneler 6 | 2 1 . . 2 . . . . . . . . . . . . . . . . 1 . . . . . . Hauler 5 | . . . 4 . . . . . 1 . . . . . . . . . . . . . . . . . . Recycler 6 | 1 . . 2 . . . . . . . . . . . . . 1 . 1 . 1 . . . . . . Operator 1 | . . . . . . . . . . . . . . . 1 . . . . . . . . . . . . Watcher 7 | . . . 1 . . . 1 . . 1 . 1 . . . . 1 . . . . . 1 . . . 1 Swarmer 89 | . 2 3 9 3 . . . 15 3 . . 4 . 7 . 8 1 4 2 . . 9 2 15 . . 2 Cutter 10 | . . . . . . . . . . 1 . . . 2 . 3 . . . . . . . 4 . . . Grunt 99 | . 7 . 9 2 . 1 3 3 4 8 . 3 2 2 . 5 2 8 2 13 3 11 3 8 . . . Brawler 5 | . . . . 1 . . . . 1 . . . . 1 . 1 . 1 . . . . . . . . . Duelist 4 | . . . 1 . . . . . . . . . . 2 . . . . . . . . . . . . 1 Protector 1 | . . . . . . . . . . 1 . . . . . . . . . . . . . . . . . Sentry 45 | . . . 8 . . . 2 5 2 7 1 4 1 . 1 1 3 . . 2 1 2 2 3 . . . Demolisher 1 | . . . . . . . . . . 1 . . . . . . . . . . . . . . . . . Specialist 6 | . . . . . . . . . . . . . . . . . . . . 2 . 4 . . . . . Hunter 15 | . . . . . . . . 3 1 . . 4 . 1 . . 2 2 . . . 1 . 1 . . . Programmer 28 | . . . . . . . . 2 . 3 . 1 . . . 1 6 . 4 1 2 3 1 . . . 4 Heavy 1 | . . . . . . . . . . . . . . . . . . . . . . . . . . . 1 Behemoth 3 | . . . . . . . . . . . . . . . . . . . . 1 . 1 . 1 . . . Assembled 2 | . . . . 2 . . . . . . . . . . . . . . . . . . . . . . . Best Kill Streak 15 | 2 5 3 7 4 . 1 5 6 7 5 2 6 1 15 1 10 5 6 4 10 4 9 4 6 . . 3 Combat Bots Only 15 | . 5 3 5 3 . 1 4 6 7 5 1 6 1 15 1 10 4 6 3 10 3 9 3 6 . . 3 Max Kills in Single Turn 6 | 1 1 2 3 2 . 1 2 6 3 2 1 3 1 3 1 4 2 3 2 2 2 2 2 2 . . 2 Gunslinging 1 | . . 1 . . . . . . . . . . . 1 . . . . 1 1 . . . . . . . Exploded 6 | . . . 3 2 . . 1 6 3 2 . 3 . 2 . 4 1 3 1 1 2 2 . 2 . . . Melee 1 | . . . 1 . . . . . . . . . . . . . . . . . . . . . . . . Uniques/NPCs Destroyed . | . . . . . . . . . . . . . . . . . . . . . . . . . . . . Combat | -11 -10 -10 -9 -9 -9 -8 -8 -8 -8 -8 -7 -7 -7 -7 -6 -6 -5 -5 -4 -4 -4 -4 -3 -3 -2 -2 -1 -------- Run | Yrd Mat Min Mat Min Exi Min Mat Gar Mat Gar Fac Gar Fac Gar Fac Gar Fac Gar Fac Gar Fac Gar Res Gar Res DSF Acc Hostile Shots Fired 1443 | . 58 16 80 12 . 19 9 66 38 68 33 92 14 38 27 54 92 34 69 113 10 327 44 90 . 1 39 Missed 443 | . 21 4 22 2 . 6 3 15 18 24 15 24 9 14 12 26 23 10 28 26 4 81 17 26 . 1 12 Damage Taken 18270 | . 406 105 730 138 . 206 94 753 288 931 121 830 72 223 91 426 1813 471 427 1780 196 4236 667 1922 16 105 1223 Core 1678 | . 71 27 190 10 . 14 33 81 58 144 . 25 12 16 11 110 108 36 20 33 22 600 . 43 . . 14 Absorbed by Shields 14 | . . . . . . . . . . . . . . . . 14 . . . . . . . . . . . Reduced by Siege Mode 738 | . . . . . . . . . . . . 40 . . . 4 98 . 4 94 12 264 24 86 . . 112 Ignored by Resistances 240 | . . . . . . . . . . . . 60 . . 20 9 . . . 125 . . . . . . 26 Regen/Repaired (Parts) 518 | . . . . . . . . . . . . . . . . . . . . . . . 241 84 . . 193 Core Remaining (%) 76 | 100 . 60 . . . 46 . . . 42 . . . 92 . 85 . 85 . . . 41 . 96 . 100 99 Volleys Fired 902 | 8 30 17 76 13 . 6 11 48 39 60 21 35 22 29 7 41 38 32 32 53 48 71 36 69 . 6 54 Largest 4 | 2 2 2 2 2 . 2 2 2 2 2 3 3 3 3 3 3 4 4 4 4 2 2 2 3 . 1 2 Hottest 248 | 40 100 85 121 100 . 100 100 100 69 69 94 166 133 140 138 127 129 132 156 160 203 188 166 248 . 94 154 Shots Fired 1557 | 16 57 34 138 21 . 11 18 77 60 100 28 80 37 57 13 71 119 51 59 133 53 102 50 95 . 6 71 Gun 919 | 16 56 34 100 9 . 6 7 42 45 93 20 67 22 44 7 54 109 31 40 117 . . . . . . . Cannon 414 | . . . 35 7 . 5 8 21 . . . 5 2 4 2 1 . . 5 3 44 96 43 75 . 3 55 Launcher 102 | . . . 1 5 . . 3 12 5 5 . 4 . 5 2 12 . 14 7 4 1 6 . 16 . . . Special 122 | . 1 . 2 . . . . 2 10 2 8 4 13 4 2 4 10 6 7 9 8 . 7 4 . 3 16 Kinetic 1084 | 16 55 17 64 7 . 5 10 27 45 93 20 67 22 44 7 54 109 31 45 119 18 63 39 56 . 2 49 Thermal 204 | . 2 17 73 9 . 6 5 36 . . . 5 2 4 2 1 . . . 1 26 11 4 . . . . Explosive 79 | . . . 1 5 . . 3 12 5 5 . 4 . 5 1 5 . 3 3 4 1 6 . 16 . . . Electromagnetic 71 | . . . . . . . . . . . . . . . 1 7 . 11 4 . . 22 . 19 . 1 6 Robot Hit Streak 33 | 4 6 7 10 11 . 5 11 16 12 11 25 33 9 10 16 27 13 15 9 25 9 19 13 14 . 8 21 Robot Miss Streak 5 | 1 5 4 3 1 . 1 1 1 2 3 . 1 2 3 . 3 3 2 2 3 2 3 3 3 . 1 3 Penetration Max 3 | . . . . . . . . . 1 1 1 1 . . . 1 1 1 1 3 . . . . . . . Secondary Targets 27 | . 3 2 2 . . . . 1 . 2 . 1 . 2 . 1 4 1 3 5 . . . . . . . Max Gunslinging Chain 2 | . 1 1 1 . . . . 1 . 1 . 1 . 2 . 1 1 1 2 1 . . . . . . . Shots Hit Robots 977 | 11 28 22 93 13 . 9 12 45 40 56 20 61 27 25 8 34 86 29 27 94 28 64 40 46 . 6 53 Core Hits 565 | 4 17 5 44 10 . 2 10 35 28 34 4 28 6 21 3 32 37 29 26 48 14 38 20 47 . . 23 Critical Kills 18 | 1 . 1 1 . . . . . 1 . . . . . . . 2 . . 12 . . . . . . . Critical Parts Destroyed 27 | . . . . . . . . . . 3 . 1 . 1 . . 1 1 . 20 . . . . . . . Critical Strikes 69 | 1 . 1 4 . . . 2 2 1 3 . 1 . 1 . . 3 1 . 36 2 8 1 1 . . 1 Burn 5 | . . . 1 . . . 2 2 . . . . . . . . . . . . . . . . . . . Destroy 50 | 1 . 1 2 . . . . . 1 3 . 1 . 1 . . 3 1 . 36 . . . . . . . Blast 12 | . . . 1 . . . . . . . . . . . . . . . . . 2 6 1 1 . . 1 Corrupt 2 | . . . . . . . . . . . . . . . . . . . . . . 2 . . . . . Melee Attacks 43 | . . . 5 . . . 4 2 . 8 12 3 . . . . 3 . 6 . . . . . . . . Impact . | . . . . . . . . . . . . . . . . . . . . . . . . . . . . Slashing 43 | . . . 5 . . . 4 2 . 8 12 3 . . . . 3 . 6 . . . . . . . . Piercing . | . . . . . . . . . . . . . . . . . . . . . . . . . . . . Sneak Attacks 5 | . . . . . . . . . . 1 2 . . . . . . . 2 . . . . . . . . Combat Hostiles . | . . . . . . . . . . . . . . . . . . . . . . . . . . . . Follow-up Attacks . | . . . . . . . . . . . . . . . . . . . . . . . . . . . . Damage Inflicted 43277 | 138 397 339 1866 423 . 206 656 2119 1406 2035 570 2396 413 1683 254 2142 2386 1968 1737 1999 2382 5198 2261 5427 . 103 2773 Guns 13017 | 138 397 339 1123 150 . 100 131 596 772 1622 224 1171 373 648 183 870 2020 504 620 1036 . . . . . . . Cannons 14920 | . . . 529 106 . 106 59 293 . . . 34 38 . . . . . . 159 1684 4085 2248 2721 . 103 2755 Explosions 14544 | . . . 125 167 . . 466 1230 609 345 . 1191 . 1035 71 1272 338 1464 975 804 633 1113 . 2706 . . . Melee 562 | . . . 89 . . . . . . 68 263 . . . . . . . 142 . . . . . . . . Ramming 234 | . . . . . . . . . 25 . 83 . 2 . . . 28 . . . 65 . 13 . . . 18 Kinetic 24163 | 138 380 127 748 106 . 106 88 361 772 1622 224 1171 373 648 183 870 2020 504 620 1195 1347 3311 2248 2375 . 67 2559 Thermal 3310 | . 17 212 904 150 . 100 102 528 . . . 34 38 . . . 238 . 260 . 639 88 . . . . . Explosive 12153 | . . . 125 167 . . 466 1230 609 345 . 1191 . 1035 71 887 100 430 543 804 331 1113 . 2706 . . . Electromagnetic 2855 | . . . . . . . . . . . . . . . . 385 . 1034 172 . . 686 . 346 . 36 196 Impact . | . . . . . . . . . . . . . . . . . . . . . . . . . . . . Slashing 562 | . . . 89 . . . . . . 68 263 . . . . . . . 142 . . . . . . . . Piercing . | . . . . . . . . . . . . . . . . . . . . . . . . . . . . Highest Corruption 9 | . . . . . . . . 2 2 7 . . . . . 1 3 3 . . . 9 8 8 . . . Average Corruption 4 | . . . . . . . . 1 2 5 . . . . . 1 2 3 . . . 3 7 8 . . . Corruption Purged . | . . . . . . . . . . . . . . . . . . . . . . . . . . . . Corruption Blocked . | . . . . . . . . . . . . . . . . . . . . . . . . . . . . Effects 136 | . . . . . . . . 7 3 21 . . . . . 7 7 16 . . . 14 13 48 . . . Message Errors 33 | . . . . . . . . 2 . 3 . . . . . 2 1 7 . . . 1 3 14 . . . Matter Fused 26 | . . . . . . . . 2 1 5 . . . . . 1 2 1 . . . 3 1 10 . . . Heat Flow Errors 16 | . . . . . . . . 1 1 1 . . . . . 1 2 2 . . . 1 4 3 . . . Energy Discharges 19 | . . . . . . . . . . 3 . . . . . 2 . 1 . . . 6 2 5 . . . Parts Rejected 5 | . . . . . . . . . . 3 . . . . . . . . . . . . . 2 . . . Parts Fused 3 | . . . . . . . . . . . . . . . . 1 1 1 . . . . . . . . . Data Loss (minor) 15 | . . . . . . . . 1 . 2 . . . . . . 1 2 . . . 1 3 5 . . . Data Loss (major) 11 | . . . . . . . . 1 . 2 . . . . . . . 1 . . . 1 . 6 . . . Misfires 1 | . . . . . . . . . . . . . . . . . . . . . . 1 . . . . . Alerts 5 | . . . . . . . . . 1 1 . . . . . . . 1 . . . . . 2 . . . Weapon Failures 2 | . . . . . . . . . . 1 . . . . . . . . . . . . . 1 . . . Overload Shots . | . . . . . . . . . . . . . . . . . . . . . . . . . . . . Overflow Damage 2284 | . . . . . . . 50 45 12 33 145 94 . 55 . 17 . 108 103 6 501 382 350 239 . . 144 Projectiles 1488 | . . . . . . . . 3 . . . . . . . . . . . . 501 382 350 108 . . 144 Explosions 578 | . . . . . . . 50 42 12 . . 94 . 55 . 17 . 108 63 6 . . . 131 . . . Melee 218 | . . . . . . . . . . 33 145 . . . . . . . 40 . . . . . . . . Knockbacks 53 | . . . 1 . . 3 1 2 . . 1 . . . . . . . . . 5 13 7 7 . 1 12 Impact 1 | . . . . . . . . . . . 1 . . . . . . . . . . . . . . . . Kinetic 48 | . . . 1 . . 2 1 2 . . . . . . . . . . . . 5 13 7 6 . 1 10 Secondary 4 | . . . . . . 1 . . . . . . . . . . . . . . . . . 1 . . 2 Self-Inflicted Damage 590 | . . . . 39 . . . 59 . 24 . 160 . . . 27 100 5 . . 52 31 . 93 . . . Shots 17 | . . . . 1 . . . 2 . 1 . 3 . . . 1 1 1 . . 1 2 . 4 . . . Rammed 12 | . . . . . . . . . . . . . . . . . 2 . . . 5 . 2 . . . 3 Targets Rammed 22 | . . . . . . . . . 5 . 4 . 1 . . . 2 . . . 5 . 2 . . . 3 Kicked 10 | . . . . . . . . . 5 . 4 . 1 . . . . . . . . . . . . . . Crushed . | . . . . . . . . . . . . . . . . . . . . . . . . . . . . Highest Temperature 329 | . 24 248 217 36 . 36 78 216 210 224 43 214 42 191 141 263 325 262 114 302 253 315 329 212 . . 131 Average Temperature 64 | . 8 111 33 15 . 15 22 53 71 30 21 57 17 41 47 47 96 48 46 72 50 110 103 53 . . 54 Received Heat Transfer 3835 | . 210 6 219 36 . 135 54 81 63 153 24 144 33 33 30 42 216 126 9 291 9 1645 102 135 . . 39 Effects 2 | . . . . . . . . . . . . . . . . . . . . . . 2 . . . . . Energy Bleed 1 | . . . . . . . . . . . . . . . . . . . . . . 1 . . . . . Short Circuit 1 | . . . . . . . . . . . . . . . . . . . . . . 1 . . . . . Siege Activations 44 | . . . . . . . . . . . . 6 . . . 1 5 3 2 6 2 9 3 4 . . 3 Total Turns 555 | . . . . . . . . . . . . 51 . . . 12 71 12 16 85 26 134 37 61 . . 50 Longest Duration 49 | . . . . . . . . . . . . 14 . . . 12 25 7 9 32 15 49 15 43 . . 32 Robots Corrupted 7 | . . . . . . . . . . . . . . . . . . 3 . . . 4 . . . . . Combat Hostiles 7 | . . . . . . . . . . . . . . . . . . 3 . . . 4 . . . . . Parts Fried 20 | . . . . . . . . . . . . . . . . . . 3 1 . . 8 . 4 . . 4 Impact Corruptions 2 | . . . . . . . . . . . 2 . . . . . . . . . . . . . . . . Robots Melted 1 | . . . . . . . . 1 . . . . . . . . . . . . . . . . . . . Combat Hostiles 1 | . . . . . . . . 1 . . . . . . . . . . . . . . . . . . . Parts Melted 8 | . . . 2 . . . 1 3 . 1 . . . . . . . . . 1 . . . . . . . Heat Transferred 5225 | . 37 481 1887 259 . 185 333 999 . . . 37 37 . . . 150 . 150 . 596 74 . . . . . Parts Sabotaged 1 | . . . . . . . . . . . . . . . . . . . . . . . 1 . . . . Parts Stolen . | . . . . . . . . . . . . . . . . . . . . . . . . . . . . Parts Stripped . | . . . . . . . . . . . . . . . . . . . . . . . . . . . . Power Chain Reactions 4 | . . . . . . . . . . . . . . . . . . 1 3 . . . . . . . . Missiles Intercepted . | . . . . . . . . . . . . . . . . . . . . . . . . . . . . Alert | -11 -10 -10 -9 -9 -9 -8 -8 -8 -8 -8 -7 -7 -7 -7 -6 -6 -5 -5 -4 -4 -4 -4 -3 -3 -2 -2 -1 ------- Run | Yrd Mat Min Mat Min Exi Min Mat Gar Mat Gar Fac Gar Fac Gar Fac Gar Fac Gar Fac Gar Fac Gar Res Gar Res DSF Acc Peak Influence 1645 | 15 268 127 550 488 . 85 267 1059 760 1096 644 787 428 773 506 1205 825 1152 916 944 779 983 594 1645 941 708 411 Initial 924 | . 9 47 49 214 . . 33 173 516 494 575 118 413 165 401 354 632 520 599 310 495 177 552 410 924 708 362 Average 630 | 5 162 79 314 339 . 4 96 792 402 865 436 519 225 661 446 921 651 972 617 743 620 765 509 1110 932 685 94 Maximum Alert Level 5 | . 1 . 2 2 . . 1 3 3 3 2 3 2 3 2 4 3 4 3 3 3 3 2 5 3 3 2 Low Security (%) 11 | 100 59 100 13 . . 100 84 2 . . 32 7 40 6 . . . . . . . 2 . . . . 80 Level 1 12 | . 40 . 52 87 . . 15 7 56 . . 24 35 5 . 6 . . . 4 . 9 3 . . . 18 Level 2 34 | . . . 33 12 . . . 18 36 25 67 49 23 36 100 15 55 18 90 29 53 7 96 20 . 42 . Level 3 34 | . . . . . . . . 71 7 74 . 18 . 52 . 67 44 52 8 66 46 80 . 31 100 57 . Level 4 5 | . . . . . . . . . . . . . . . . 10 . 29 . . . . . 32 . . . Level 5 1 | . . . . . . . . . . . . . . . . . . . . . . . . 15 . . . High Security . | . . . . . . . . . . . . . . . . . . . . . . . . . . . . Max Security . | . . . . . . . . . . . . . . . . . . . . . . . . . . . . Squads Dispatched 36 | . 1 . 3 . . 1 2 . 3 . 1 . 4 . . . 6 . 4 . 3 . 5 . . . 3 Investigation 8 | . 1 . 2 . . 1 1 . . . . . . . . . 1 . 1 . . . 1 . . . . Extermination 6 | . . . . . . . . . . . . . . . . . 2 . 1 . 1 . 1 . . . 1 Reinforcement 9 | . . . 1 . . . . . 2 . 1 . 2 . . . . . 1 . . . . . . . 2 Assault 3 | . . . . . . . . . . . . . . . . . . . . . 2 . 1 . . . . Garrison 10 | . . . . . . . 1 . 1 . . . 2 . . . 3 . 1 . . . 2 . . . . Intercept . | . . . . . . . . . . . . . . . . . . . . . . . . . . . . Searches Triggered . | . . . . . . . . . . . . . . . . . . . . . . . . . . . . Construction Impeded 1 | . . . . . . . . . 1 . . . . . . . . . . . . . . . . . . Haulers Reinforced 1 | . . . . . . . . . . . . . 1 . . . . . . . . . . . . . . Active Scanning Responses . | . . . . . . . . . . . . . . . . . . . . . . . . . . . . Cargo Convoy Interrupts . | . . . . . . . . . . . . . . . . . . . . . . . . . . . . Alert ID Control Effect 67 | . . . . . . . . . . . . 1 1 6 . 1 6 4 14 6 7 . 4 6 . 3 8 Stealth | -11 -10 -10 -9 -9 -9 -8 -8 -8 -8 -8 -7 -7 -7 -7 -6 -6 -5 -5 -4 -4 -4 -4 -3 -3 -2 -2 -1 --------- Run | Yrd Mat Min Mat Min Exi Min Mat Gar Mat Gar Fac Gar Fac Gar Fac Gar Fac Gar Fac Gar Fac Gar Res Gar Res DSF Acc Distress Signals 9 | . 1 1 4 . . . 1 . 1 . . . . . . . . . 1 . . . . . . . . Communications Jammed 231 | . . . . . . . . . . . 25 18 1 . . . 26 . 27 . 24 . 36 43 . . 31 Distress Signals 219 | . . . . . . . . . . . 25 18 . . . . 24 . 27 . 24 . 36 43 . . 22 Times Spotted 479 | . 16 4 40 12 . 6 9 25 24 22 8 21 14 20 1 17 23 29 24 25 16 25 23 45 . 5 25 Peak Tracking Total 9 | . 7 3 6 4 . 5 5 6 7 4 2 6 4 6 1 8 4 4 4 9 6 8 7 5 . 2 6 Tactical Retreats 25 | . . . 1 1 . . 1 . . 1 . 1 . 2 . 1 1 5 . . 1 1 2 6 . . 1 Traps | -11 -10 -10 -9 -9 -9 -8 -8 -8 -8 -8 -7 -7 -7 -7 -6 -6 -5 -5 -4 -4 -4 -4 -3 -3 -2 -2 -1 ------- Run | Yrd Mat Min Mat Min Exi Min Mat Gar Mat Gar Fac Gar Fac Gar Fac Gar Fac Gar Fac Gar Fac Gar Res Gar Res DSF Acc Traps Triggered 26 | . 1 . . . . . 1 . . 5 . . . 1 . 2 3 7 . 1 . . 1 3 . . 1 Indirectly 4 | . . . . . . . . . . . . . . . . . . 4 . . . . . . . . . Trap Hack Attempts . | . . . . . . . . . . . . . . . . . . . . . . . . . . . . Triggered . | . . . . . . . . . . . . . . . . . . . . . . . . . . . . Disarmed . | . . . . . . . . . . . . . . . . . . . . . . . . . . . . Reprogrammed . | . . . . . . . . . . . . . . . . . . . . . . . . . . . . Reused . | . . . . . . . . . . . . . . . . . . . . . . . . . . . . Traps Extracted . | . . . . . . . . . . . . . . . . . . . . . . . . . . . . Installed . | . . . . . . . . . . . . . . . . . . . . . . . . . . . . Triggered . | . . . . . . . . . . . . . . . . . . . . . . . . . . . . Machines | -11 -10 -10 -9 -9 -9 -8 -8 -8 -8 -8 -7 -7 -7 -7 -6 -6 -5 -5 -4 -4 -4 -4 -3 -3 -2 -2 -1 ---------- Run | Yrd Mat Min Mat Min Exi Min Mat Gar Mat Gar Fac Gar Fac Gar Fac Gar Fac Gar Fac Gar Fac Gar Res Gar Res DSF Acc Machines Disabled 91 | . . . 2 . . . 1 6 4 3 1 2 . 3 2 7 7 3 11 4 12 7 . 13 . 1 2 Max in Single Turn 9 | . . . 2 . . . 1 2 2 2 1 1 . 1 2 1 3 1 9 2 8 2 . 2 . 1 1 Garrison Access 3 | . . . . . . . . . . . 1 . . . . . . . . . 1 . 1 . . . . Garrison Relay 15 | . . . . . . . . 1 . 1 . 1 . 1 . 2 . 2 . 1 . 2 . 4 . . . Phase Generator 5 | . . . . . . . . 1 . . . . . . . 1 . . . 1 . 1 . 1 . . . Machines Repaired . | . . . . . . . . . . . . . . . . . . . . . . . . . . . . Machines Dismantled . | . . . . . . . . . . . . . . . . . . . . . . . . . . . . Machines Sabotaged . | . . . . . . . . . . . . . . . . . . . . . . . . . . . . Overloaded Fab Kills . | . . . . . . . . . . . . . . . . . . . . . . . . . . . . Hacking | -11 -10 -10 -9 -9 -9 -8 -8 -8 -8 -8 -7 -7 -7 -7 -6 -6 -5 -5 -4 -4 -4 -4 -3 -3 -2 -2 -1 --------- Run | Yrd Mat Min Mat Min Exi Min Mat Gar Mat Gar Fac Gar Fac Gar Fac Gar Fac Gar Fac Gar Fac Gar Res Gar Res DSF Acc Machines Accessed 72 | . 6 1 11 . 1 1 4 1 4 3 3 1 3 3 3 1 4 2 7 1 2 1 6 . 1 . 2 Terminals 48 | . 6 . 10 . . 1 3 1 2 3 . 1 1 3 1 1 1 2 4 1 . 1 3 . 1 . 2 Fabricators 7 | . . . . . . . . . . . 1 . 1 . 1 . 2 . 2 . . . . . . . . Repair Stations 1 | . . . . . . . . . . . . . . . . . . . . . . . 1 . . . . Recycling Units 2 | . . . 1 . . . . . 1 . . . . . . . . . . . . . . . . . . Scanalyzers . | . . . . . . . . . . . . . . . . . . . . . . . . . . . . Garrison Access 12 | . . . . . . . 1 . 1 . 2 . 1 . 1 . 1 . 1 . 2 . 2 . . . . Total Hacks 164 | . 23 1 35 . 1 5 8 1 13 4 5 3 5 3 6 3 8 3 12 1 3 1 14 . 3 . 3 Successful 74 | . 12 1 15 . 1 . 5 . 7 3 5 . 3 2 2 . 3 1 2 1 3 1 6 . 1 . . Failed 88 | . 10 . 19 . . 5 3 1 6 1 . 3 2 1 4 3 5 2 10 . . . 8 . 2 . 3 Catastrophic 20 | . 1 . 5 . . 1 1 . 1 1 . 1 1 . 2 . 2 1 2 . . . . . . . 1 Database Lockouts 2 | . 1 . 1 . . . . . . . . . . . . . . . . . . . . . . . . Manual 102 | . 19 . 27 . 1 5 6 . 9 . 2 . 3 . 2 . 6 . 11 . . . 8 . . . 3 Terminals 126 | . 23 . 34 . . 5 7 1 10 4 . 3 2 3 3 3 1 3 7 1 . 1 9 . 3 . 3 Fabricators 17 | . . . . . . . . . . . 3 . 2 . 2 . 6 . 4 . . . . . . . . Repair Stations 2 | . . . . . . . . . . . . . . . . . . . . . . . 2 . . . . Recycling Units 3 | . . . 1 . . . . . 2 . . . . . . . . . . . . . . . . . . Scanalyzers . | . . . . . . . . . . . . . . . . . . . . . . . . . . . . Garrison Access 14 | . . . . . . . 1 . 1 . 2 . 1 . 1 . 1 . 1 . 3 . 3 . . . . Terminal Hacks 32 | . 7 1 8 . 1 . 1 . 2 3 . . 1 2 1 . . 1 . 1 . 1 1 . 1 . . Robot Analysis 6 | . 3 . 2 . . . . . 1 . . . . . . . . . . . . . . . . . . Prototype ID Bank 3 | . . . 3 . . . . . . . . . . . . . . . . . . . . . . . . Open Door 2 | . . 1 . . . . . . . 1 . . . . . . . . . . . . . . . . . Open DSF 1 | . . . . . . . . . . . . . . . . . . . . . . . . . 1 . . Emergency Access Points 4 | . . . . . . . . . . 1 . . . 1 . . . 1 . . . 1 . . . . . Machine Index 2 | . . . . . . . 1 . . . . . . . . . . . . . . . 1 . . . . Terminal Index 3 | . 1 . 1 . . . . . 1 . . . . . . . . . . . . . . . . . . Unreport Threat 3 | . 1 . 1 . . . . . . . . . 1 . . . . . . . . . . . . . . Locate Traps 2 | . 2 . . . . . . . . . . . . . . . . . . . . . . . . . . Recall Reinforcements 1 | . . . 1 . . . . . . . . . . . . . . . . . . . . . . . . Registered Components 1 | . . . . . . . . . . . . . . . 1 . . . . . . . . . . . . Garrison Registry 1 | . . . . . . . . . . . . . . . . . . . . 1 . . . . . . . Patrol Navigation 2 | . . . . . . . . . . 1 . . . 1 . . . . . . . . . . . . . Derelict Proto ID Bank 1 | . . . . . 1 . . . . . . . . . . . . . . . . . . . . . . Fabricator Hacks 1 | . . . . . . . . . . . 1 . . . . . . . . . . . . . . . . Network Status 1 | . . . . . . . . . . . 1 . . . . . . . . . . . . . . . . Repair Station Hacks . | . . . . . . . . . . . . . . . . . . . . . . . . . . . . Recycling Unit Hacks . | . . . . . . . . . . . . . . . . . . . . . . . . . . . . Scanalyzer . | . . . . . . . . . . . . . . . . . . . . . . . . . . . . Garrison Access Hacks 14 | . . . . . . . 1 . 1 . 2 . 1 . 1 . 1 . 1 . 3 . 3 . . . . Unlock Access 9 | . . . . . . . 1 . 1 . 1 . 1 . 1 . 1 . 1 . 1 . 1 . . . . Seal Access 3 | . . . . . . . . . . . 1 . . . . . . . . . 1 . 1 . . . . Coupler Status 2 | . . . . . . . . . . . . . . . . . . . . . 1 . 1 . . . . Unauthorized Hacks 27 | . 5 . 7 . . . 3 . 4 . 2 . 1 . . . 2 . 1 . . . 2 . . . . Terminals 18 | . 5 . 6 . . . 3 . 2 . . . . . . . . . 1 . . . 1 . . . . Track 3 | . 1 . 2 . . . . . . . . . . . . . . . . . . . . . . . . Assimilate 2 | . . . 1 . . . 1 . . . . . . . . . . . . . . . . . . . . Botnet 7 | . 2 . 2 . . . 1 . 1 . . . . . . . . . . . . . 1 . . . . Disrupt 1 | . 1 . . . . . . . . . . . . . . . . . . . . . . . . . . Operators 5 | . 1 . 1 . . . 1 . 1 . . . . . . . . . 1 . . . . . . . . Fabricators 5 | . . . . . . . . . . . 2 . 1 . . . 2 . . . . . . . . . . Prioritize 1 | . . . . . . . . . . . . . . . . . 1 . . . . . . . . . . Liberate 1 | . . . . . . . . . . . . . . . . . 1 . . . . . . . . . . Fabnet 2 | . . . . . . . . . . . 1 . 1 . . . . . . . . . . . . . . Haulers 1 | . . . . . . . . . . . 1 . . . . . . . . . . . . . . . . Repair Stations 1 | . . . . . . . . . . . . . . . . . . . . . . . 1 . . . . Mechanics 1 | . . . . . . . . . . . . . . . . . . . . . . . 1 . . . . Recycling Units 3 | . . . 1 . . . . . 2 . . . . . . . . . . . . . . . . . . Reject 1 | . . . . . . . . . 1 . . . . . . . . . . . . . . . . . . Recyclers 1 | . . . . . . . . . 1 . . . . . . . . . . . . . . . . . . Tunnel 1 | . . . 1 . . . . . . . . . . . . . . . . . . . . . . . . Scanalyzers . | . . . . . . . . . . . . . . . . . . . . . . . . . . . . Garrison Access . | . . . . . . . . . . . . . . . . . . . . . . . . . . . . Data Cores Recovered . | . . . . . . . . . . . . . . . . . . . . . . . . . . . . Used . | . . . . . . . . . . . . . . . . . . . . . . . . . . . . Hacking Detections 59 | . 6 . 9 . . 1 4 1 3 2 . 1 3 1 3 1 4 1 7 1 1 1 6 . 1 . 2 Full Trace Events 6 | . . . 1 . . 1 . . . . . 1 . . . . 1 . 1 . . . 1 . . . . Feedback Events . | . . . . . . . . . . . . . . . . . . . . . . . . . . . . Feedback Blocked . | . . . . . . . . . . . . . . . . . . . . . . . . . . . . Robot Schematics Acquired . | . . . . . . . . . . . . . . . . . . . . . . . . . . . . Robots Built . | . . . . . . . . . . . . . . . . . . . . . . . . . . . . Authchips . | . . . . . . . . . . . . . . . . . . . . . . . . . . . . Time . | . . . . . . . . . . . . . . . . . . . . . . . . . . . . Total Robot Build Rating . | . . . . . . . . . . . . . . . . . . . . . . . . . . . . Part Schematics Acquired . | . . . . . . . . . . . . . . . . . . . . . . . . . . . . Parts Built . | . . . . . . . . . . . . . . . . . . . . . . . . . . . . Authchips . | . . . . . . . . . . . . . . . . . . . . . . . . . . . . Time . | . . . . . . . . . . . . . . . . . . . . . . . . . . . . Total Part Build Rating . | . . . . . . . . . . . . . . . . . . . . . . . . . . . . Parts Repaired . | . . . . . . . . . . . . . . . . . . . . . . . . . . . . Time . | . . . . . . . . . . . . . . . . . . . . . . . . . . . . Parts Recycled . | . . . . . . . . . . . . . . . . . . . . . . . . . . . . Recycled Matter . | . . . . . . . . . . . . . . . . . . . . . . . . . . . . Retrieved Matter . | . . . . . . . . . . . . . . . . . . . . . . . . . . . . Retrieved Components . | . . . . . . . . . . . . . . . . . . . . . . . . . . . . Parts Scanalyzed . | . . . . . . . . . . . . . . . . . . . . . . . . . . . . Part Schematics Acquired . | . . . . . . . . . . . . . . . . . . . . . . . . . . . . Parts Damaged . | . . . . . . . . . . . . . . . . . . . . . . . . . . . . Bothacking | -11 -10 -10 -9 -9 -9 -8 -8 -8 -8 -8 -7 -7 -7 -7 -6 -6 -5 -5 -4 -4 -4 -4 -3 -3 -2 -2 -1 ------------ Run | Yrd Mat Min Mat Min Exi Min Mat Gar Mat Gar Fac Gar Fac Gar Fac Gar Fac Gar Fac Gar Fac Gar Res Gar Res DSF Acc Used RIF Installer 11 | . . . . . . . . 2 . 2 . 1 . 1 . 1 . 1 . 1 . 1 . 1 . . . Hotswap 1 | . . . . . . . . 1 . . . . . . . . . . . . . . . . . . . Command Fork 1 | . . . . . . . . . . . . . . . . 1 . . . . . . . . . . . Threat Obfuscator 2 | . . . . . . . . . . . . . . . . . . . . 1 . 1 . . . . . Signal Jammer 1 | . . . . . . . . . . 1 . . . . . . . . . . . . . . . . . Robot Detection 1 | . . . . . . . . . . . . . . . . . . 1 . . . . . . . . . Patrol Navigation 1 | . . . . . . . . . . 1 . . . . . . . . . . . . . . . . . Alert ID Control 1 | . . . . . . . . . . . . 1 . . . . . . . . . . . . . . . Structural Interface 1 | . . . . . . . . . . . . . . 1 . . . . . . . . . . . . . Program Shield 1 | . . . . . . . . . . . . . . . . . . . . . . . . 1 . . . Robots Hacked 79 | . . . . . . . . 2 6 1 4 4 6 3 1 4 6 6 3 7 4 . 7 4 . 3 8 Non-combat 19 | . . . . . . . . . 1 . 3 . 1 . . . 5 . 1 . 3 . 2 . . . 3 Combat 60 | . . . . . . . . 2 5 1 1 4 5 3 1 4 1 6 2 7 1 . 5 4 . 3 5 Robot Hacks Applied 102 | . . . . . . . . 2 10 1 8 4 9 3 2 3 7 6 6 9 6 . 7 4 . 3 12 parse_system 4 | . . . . . . . . . 1 . . . . . . . . . . 1 . . . 1 . . 1 deconstruct_machine 1 | . . . . . . . . . . . . . . . . . 1 . . . . . . . . . . find_dsf 1 | . . . . . . . . . . . 1 . . . . . . . . . . . . . . . . drop_inventory 2 | . . . . . . . . . . . 1 . . . . . 1 . . . . . . . . . . check_alert 1 | . . . . . . . . . . . . . . . . . . . . . . . . . . . 1 purge_threat 18 | . . . . . . . . . 3 . 3 . 2 . . . . . 4 . 3 . . . . . 3 block_reporting 1 | . . . . . . . . . . . . . 1 . . . . . . . . . . . . . . map_route 5 | . . . . . . . . . . . 1 . . . . . 1 . . . 1 . 1 . . . 1 find_garrison 5 | . . . . . . . . . 1 . 1 . 1 . 1 . 1 . . . . . . . . . . scatter_targeting 12 | . . . . . . . . . 1 . . 1 1 . . . . 1 . 5 . . 1 1 . . 1 mark_system 1 | . . . . . . . . . . . . . . . . . . . . 1 . . . . . . . link_complan 4 | . . . . . . . . . . . . . . . 1 1 . . . 1 1 . . . . . . broadcast_data 2 | . . . . . . . . . 1 . . . 1 . . . . . . . . . . . . . . disrupt_area 4 | . . . . . . . . . 1 . . . 1 . . . . . . 1 . . 1 . . . . overload_power 1 | . . . . . . . . . . . . . . . . . 1 . . . . . . . . . . overwrite_iff 12 | . . . . . . . . 2 1 . . 1 1 2 . 1 . . . . . . . 1 . . 3 formatsys_low 4 | . . . . . . . . . . . . . . . . . 1 . . . 1 . 1 . . . 1 formatsys_high 21 | . . . . . . . . . 1 1 1 2 1 1 . 1 1 5 2 . . . 2 1 . 1 1 formatsys_deep 3 | . . . . . . . . . . . . . . . . . . . . . . . 1 . . 2 . Relay Couplers Released 68 | . . . . . . . . 5 . 3 . 5 . 5 . 12 . 7 . 4 2 11 2 12 . . . Machine Destruction 60 | . . . . . . . . 5 . 3 . 5 . 5 . 8 . 7 . 4 2 7 2 12 . . . Programmers 8 | . . . . . . . . . . . . . . . . 4 . . . . . 4 . . . . . Attached 38 | . . . . . . . . 1 2 2 2 4 1 2 . 3 1 1 2 . 1 3 2 . . 8 3 Fabnet Peak Effective % 6 | . . . . . . . . . . . . . . . 6 6 2 2 . . . . . . . . . Autooverrided 1 | . . . . . . . . . . . . . . . . 1 . . . . . . . . . . . Robots Rewired 13 | . . . . . . . . . . . . 2 . . . . . . . . . . . 11 . . . Allies Hacked . | . . . . . . . . . . . . . . . . . . . . . . . . . . . . Hacks Repelled . | . . . . . . . . . . . . . . . . . . . . . . . . . . . . Allies | -11 -10 -10 -9 -9 -9 -8 -8 -8 -8 -8 -7 -7 -7 -7 -6 -6 -5 -5 -4 -4 -4 -4 -3 -3 -2 -2 -1 -------- Run | Yrd Mat Min Mat Min Exi Min Mat Gar Mat Gar Fac Gar Fac Gar Fac Gar Fac Gar Fac Gar Fac Gar Res Gar Res DSF Acc Total Allies 78 | . . . 1 4 . . 1 2 2 3 1 5 2 3 . 3 5 6 2 . 1 . 6 15 . 9 7 Largest Group 9 | . . . 1 4 3 3 1 3 3 3 1 4 3 4 1 2 3 3 3 2 2 . 3 9 4 9 7 Highest-Rated Group 549 | . . . 10 71 40 40 16 52 55 72 32 108 93 120 32 73 98 147 235 186 167 . 135 500 245 549 456 Highest-Rated Ally 178 | . . . 10 31 16 16 16 21 29 31 32 32 32 32 32 41 49 49 137 137 131 . 64 95 95 178 178 Total Orders 39 | . . . . . . . . 18 . 1 . 4 . 2 . . . . . 4 1 . 3 2 . 2 2 STAY 18 | . . . . . . . . 9 . 1 . 2 . 1 . . . . . 2 . . 1 1 . 1 . FOLLOW 15 | . . . . . . . . 9 . . . 2 . 1 . . . . . 2 . . . . . 1 . AID 6 | . . . . . . . . . . . . . . . . . . . . . 1 . 2 1 . . 2 Ally Attacks 566 | . . . . 2 . 18 4 7 32 23 3 41 34 44 . 19 14 31 52 29 13 . 21 107 8 30 34 Total Damage 18370 | . . . . 21 . 206 44 168 447 340 72 810 825 1109 . 717 370 549 2243 1529 981 . 898 4200 192 1008 1641 Kills 108 | . . . . 1 . 2 1 2 6 1 1 3 6 8 . 5 6 4 14 6 7 . 4 16 1 5 9 Allies Corrupted 3 | . . . . . . . . . . . . . . . . 1 . . 1 . . . . . . . 1 Allies Melted 1 | . . . . . . . . . . . . . . . . . 1 . . . . . . . . . . Intel | -11 -10 -10 -9 -9 -9 -8 -8 -8 -8 -8 -7 -7 -7 -7 -6 -6 -5 -5 -4 -4 -4 -4 -3 -3 -2 -2 -1 ------- Run | Yrd Mat Min Mat Min Exi Min Mat Gar Mat Gar Fac Gar Fac Gar Fac Gar Fac Gar Fac Gar Fac Gar Res Gar Res DSF Acc Robot Analysis Total 6 | . 3 . 2 . . . . . 1 . . . . . . . . . . . . . . . . . . Derelict Logs Recovered 1 | . . . . 1 . . . . . . . . . . . . . . . . . . . . . . . Drone Launches . | . . . . . . . . . . . . . . . . . . . . . . . . . . . . Drone Recoveries . | . . . . . . . . . . . . . . . . . . . . . . . . . . . . Exploration | -11 -10 -10 -9 -9 -9 -8 -8 -8 -8 -8 -7 -7 -7 -7 -6 -6 -5 -5 -4 -4 -4 -4 -3 -3 -2 -2 -1 ------------- Run | Yrd Mat Min Mat Min Exi Min Mat Gar Mat Gar Fac Gar Fac Gar Fac Gar Fac Gar Fac Gar Fac Gar Res Gar Res DSF Acc Turns Passed 18458 | 77 319 146 1109 605 265 171 322 1181 380 773 695 1037 322 599 254 911 1233 986 832 753 805 1198 753 1605 45 394 688 Spaces Moved 10994 | 41 215 102 739 524 246 130 238 860 249 508 603 518 189 456 212 567 616 544 435 316 411 542 397 785 29 208 314 Core 22 | 13 . . . . . . . . . . . . . . . . . . . . . 9 . . . . . Treads 5451 | . . . . . . . . . . . . 518 65 . . 280 616 544 435 316 411 533 397 785 29 208 314 Legs 2489 | . . . . . . . . 50 249 508 603 . 124 456 212 287 . . . . . . . . . . . Wheels 3032 | 28 215 102 739 524 246 130 238 810 . . . . . . . . . . . . . . . . . . . Hover . | . . . . . . . . . . . . . . . . . . . . . . . . . . . . Flight . | . . . . . . . . . . . . . . . . . . . . . . . . . . . . Fastest Speed 50 | 50 80 80 90 100 100 100 95 90 90 90 90 160 100 100 100 100 160 160 160 160 160 50 155 152 160 160 160 Average Speed 130 | 78 96 84 102 102 100 100 100 113 93 97 91 160 130 100 100 132 164 160 160 160 160 154 155 156 160 160 160 Slowest Speed 176 | 100 100 95 105 115 100 100 115 115 170 170 170 160 176 100 100 165 165 160 160 160 160 160 155 160 160 160 165 Overloaded Moves . | . . . . . . . . . . . . . . . . . . . . . . . . . . . . Propulsion Burnouts . | . . . . . . . . . . . . . . . . . . . . . . . . . . . . Robots Hopped . | . . . . . . . . . . . . . . . . . . . . . . . . . . . . Cave-ins Triggered . | . . . . . . . . . . . . . . . . . . . . . . . . . . . . Exploration Rate (%) 46 | 4 50 21 74 84 65 34 27 89 47 65 18 77 10 70 9 79 25 81 19 55 17 75 12 85 1 98 10 Regions Visited 27 Branch Regions 4 Pre-discovered Areas 2 | . . 1 1 . . . . . . . . . . . . . . . . . . . . . . . . Known Exits Taken 10 | . . . . . . . 1 . 1 . 1 . 1 . 1 . 1 . 1 . 1 . 1 . 1 . . Unknown Exits Taken 7 | 1 1 1 1 1 1 1 . . . . . . . . . . . . . . . . . . . . . Scrap Searched 2 | . . . . 2 . . . . . . . . . . . . . . . . . . . . . . . Spaces Dug 66 | . 1 . 4 11 . . 4 . . . 7 . 1 5 2 . 3 . 10 . 8 2 3 1 . . 4 Terrain Destroyed 1363 | . 1 . 17 59 . . 23 104 30 22 9 27 1 24 11 139 68 23 115 113 67 166 7 324 . . 13 Melee 20 | . . . 2 . . . 4 . . . 7 . . . . . 3 . 4 . . . . . . . . Projectile 127 | . 1 . 3 . . . . . 9 8 2 3 1 10 3 2 5 3 11 1 15 19 7 11 . . 13 AOE 1213 | . . . 12 59 . . 19 104 21 14 . 24 . 13 8 137 60 20 100 110 52 147 . 313 . . . Terrain Rammed . | . . . . . . . . . . . . . . . . . . . . . . . . . . . . Walls Destroyed . | . . . . . . . . . . . . . . . . . . . . . . . . . . . . Machines Disabled . | . . . . . . . . . . . . . . . . . . . . . . . . . . . . Actions | -11 -10 -10 -9 -9 -9 -8 -8 -8 -8 -8 -7 -7 -7 -7 -6 -6 -5 -5 -4 -4 -4 -4 -3 -3 -2 -2 -1 --------- Run | Yrd Mat Min Mat Min Exi Min Mat Gar Mat Gar Fac Gar Fac Gar Fac Gar Fac Gar Fac Gar Fac Gar Res Gar Res DSF Acc Total 13670 | 67 266 128 935 569 266 159 297 978 335 663 704 667 240 560 243 674 754 625 519 474 500 769 488 1059 28 273 430 Wait 450 | . . . 15 8 15 20 . 9 6 21 13 36 3 29 5 13 21 23 15 35 9 60 16 46 . 7 25 Move 10957 | 40 214 101 738 523 245 129 237 858 248 506 602 516 188 454 211 565 615 542 434 314 410 540 396 783 28 207 313 Hop . | . . . . . . . . . . . . . . . . . . . . . . . . . . . . Pick Up 253 | 9 5 1 23 1 2 1 8 11 9 16 14 11 4 7 5 10 19 8 7 13 4 25 2 19 . 15 4 Fast Attach 102 | 4 1 1 8 3 . . 7 4 2 5 4 1 1 1 . 3 6 . . 8 5 17 4 4 . 6 7 Attach 147 | 3 4 . 11 . . 1 2 5 2 7 4 4 4 1 2 3 12 2 3 12 4 17 13 14 . 7 10 Detach 78 | . 1 . 4 . . . 3 2 2 . 3 1 2 1 . 2 2 . . 5 2 13 14 4 . 8 9 Swap 352 | 2 8 4 32 13 1 2 11 26 18 21 15 24 11 20 10 25 18 13 17 15 7 14 4 15 . 4 2 Drop 226 | 1 3 4 23 8 3 . 14 13 4 9 12 8 4 9 3 12 18 5 5 19 6 12 1 15 . 12 3 Fire 902 | 8 30 17 76 13 . 6 11 48 39 60 21 35 22 29 7 41 38 32 32 53 48 71 36 69 . 6 54 Melee 43 | . . . 5 . . . 4 2 . 8 12 3 . . . . 3 . 6 . . . . . . . . Ram . | . . . . . . . . . . . . . . . . . . . . . . . . . . . . Kick 10 | . . . . . . . . . 5 . 4 . 1 . . . . . . . . . . . . . . Crush 12 | . . . . . . . . . . . . . . . . . 2 . . . 5 . 2 . . . 3 Escape Stasis 20 | . . . . . . . . . . 10 . . . 9 . . . . . . . . . . . 1 . Rewire 118 | . . . . . . . . . . . . 28 . . . . . . . . . . . 90 . . . Trap . | . . . . . . . . . . . . . . . . . . . . . . . . . . . . Miscellaneous . | . . . . . . . . . . . . . . . . . . . . . . . . . . . . Route ------- -11/Scrapyard -10/Materials (discovered 2 exits: *Mat / *Min) -10/Mines -9/Materials (discovered 3 exits: *Mat x2 / [*Min]) -9/Mines (discovered 2 exits: *Mat / *Exi) -9/Exiles -8/Mines -8/Materials -8/Garrison (discovered 3 exits: *Mat x3) -8/Materials -8/Garrison (discovered 2 exits: *Fac x2) -7/Factory (discovered 2 exits: *Fac / Gar) -7/Garrison (discovered 2 exits: *Fac x2) -7/Factory (discovered 2 exits: *Fac / Gar) -7/Garrison (discovered 3 exits: *Fac x3) -6/Factory -6/Garrison (discovered 3 exits: *Fac x3) -5/Factory (discovered 3 exits: *Fac x2 / Gar) -5/Garrison (discovered 3 exits: *Fac x3) -4/Factory (discovered 3 exits: Res / [Ext] / Gar) -4/Garrison (discovered 3 exits: *Fac x3) -4/Factory (discovered 2 exits: *Res / Gar) -4/Garrison (discovered 2 exits: *Res x2) -3/Research (discovered 2 exits: [*Tes] / Gar) -3/Garrison (discovered 3 exits: *Res x3) -2/Research -2/DSF -1/Access To Epsilon Eridani History --------- Turn | Location | Event 10 | -11/Scrapyard | Discovered new exit (range 15) 78 | -11/Scrapyard | Entered Materials 200 | -10/Materials | Discovered new exit (range 16) 291 | -10/Materials | Central database locked down 308 | -10/Materials | Build established: Mutant 341 | -10/Materials | Discovered new exit (range 12) 397 | -10/Materials | Entered Mines 406 | -10/Mines | Discovered new exit (range 5) 407 | -10/Mines | Learned location of Storage (-7) 417 | -10/Mines | Found the Drone Emporium 543 | -10/Mines | Entered Materials 543 | -9/Materials | Evolved 2 slots: Propulsion x1, Utility x1 793 | -9/Materials | Central database locked down 974 | -9/Materials | Discovered new exit (range 11) 1331 | -9/Materials | Discovered new exit (range 16) 1620 | -9/Materials | Discovered new exit (range 9) 1652 | -9/Materials | Entered Mines 1754 | -9/Mines | Assembled infested the area 1759 | -9/Mines | Assisted by a Guerilla fighting off Assembled 1823 | -9/Mines | Received a Mining Laser from a helpful Derelict 1893 | -9/Mines | Found a damaged Exp. Sensor Array with a note attached 1896 | -9/Mines | Found Prototype Device 1896 | -9/Mines | Identified Exp. Sensor Array 1922 | -9/Mines | Build established: Scavenger-Mutant 1922 | -9/Mines | Discovered new exit (range 9) 1943 | -9/Mines | Assisted by bots powering up and referring to "LRC-V3" 2179 | -9/Mines | Learned 2 Materials zone layouts 2245 | -9/Mines | Deemed a non-threat by the Exiles lab entrance 2245 | -9/Mines | Discovered new exit (range 5) 2257 | -9/Mines | Entered Exiles 2257 | -9/Exiles | Accompanied by 3 allies 2283 | -9/Exiles | Met 8R-AWN 2299 | -9/Exiles | Met EX-HEX 2368 | -9/Exiles | Met EX-BIN 2379 | -9/Exiles | Aligned with FarCom system 2380 | -9/Exiles | Given EX-Vault access code 2403 | -9/Exiles | Opened EX-Vault 2409 | -9/Exiles | Found Potential Leg 2411 | -9/Exiles | Found Potential Leg 2435 | -9/Exiles | Warned to stay clear of 0b10 Research branches 2462 | -9/Exiles | Met EX-DEC 2499 | -9/Exiles | Discovered new exit (range 10) 2522 | -9/Exiles | Left Exiles lab with Potential Leg 2522 | -9/Exiles | Entered Mines 2522 | -8/Mines | Accompanied by 3 allies 2599 | -8/Mines | Discovered new exit (range 5) 2652 | -8/Mines | Core integrity fell below 50% 2693 | -8/Mines | Entered Materials 2693 | -8/Materials | Accompanied by 1 ally 2693 | -8/Materials | Evolved 2 slots: Utility x2 2964 | -8/Materials | Garrison activated, responded to threat 3014 | -8/Materials | Identified exit to Garrison 3015 | -8/Materials | Entered Garrison 3015 | -8/Garrison | Accompanied by 1 ally 3047 | -8/Garrison | Triggered checkpoint 3133 | -8/Garrison | Triggered checkpoint 3209 | -8/Garrison | Build established: Mutant 3239 | -8/Garrison | Discovered new exit (range 10) 3244 | -8/Garrison | Triggered checkpoint 3312 | -8/Garrison | Triggered checkpoint 3353 | -8/Garrison | Phase Generator disabled 3496 | -8/Garrison | Triggered checkpoint 3518 | -8/Garrison | Triggered checkpoint 3607 | -8/Garrison | Discovered new exit (range 13) 3666 | -8/Garrison | Installed Relay Interface Framework 3763 | -8/Garrison | Expanded RIF knowledge: Hotswap 3854 | -8/Garrison | Triggered checkpoint 4186 | -8/Garrison | Discovered new exit (range 8) 4196 | -8/Garrison | Entered Materials 4196 | -8/Materials | Accompanied by 1 ally 4533 | -8/Materials | Garrison activated, responded to threat 4573 | -8/Materials | Destroyed 7 combat bots 4574 | -8/Materials | Identified exit to Garrison 4576 | -8/Materials | Entered Garrison 4576 | -8/Garrison | Accompanied by 2 allies 4758 | -8/Garrison | Triggered checkpoint 4801 | -8/Garrison | Rescued a captive Derelict 4802 | -8/Garrison | Rescued a captive Derelict 4816 | -8/Garrison | Triggered checkpoint 4822 | -8/Garrison | Garrison Relay disabled 4877 | -8/Garrison | Triggered checkpoint 4878 | -8/Garrison | Triggered checkpoint 4895 | -8/Garrison | Triggered checkpoint 4910 | -8/Garrison | Triggered checkpoint 4945 | -8/Garrison | Lost 3 allies 4971 | -8/Garrison | Discovered new exit (range 11) 5010 | -8/Garrison | Core integrity fell below 50% 5053 | -8/Garrison | Lost 3 parts (1p1n1u) 5112 | -8/Garrison | Triggered checkpoint 5168 | -8/Garrison | Expanded RIF knowledge: Patrol Navigation 5279 | -8/Garrison | Discovered new exit (range 12) 5313 | -8/Garrison | Expanded RIF knowledge: Signal Jamming 5349 | -8/Garrison | Entered Factory 5349 | -7/Factory | Evolved 2 slots: Utility x1, Weapon x1 5436 | -7/Factory | Discovered new exit (range 14) 6040 | -7/Factory | Identified exit to Garrison 6044 | -7/Factory | Entered Garrison 6208 | -7/Garrison | Triggered checkpoint 6230 | -7/Garrison | Triggered checkpoint 6254 | -7/Garrison | Build established: Skirmisher 6294 | -7/Garrison | Triggered checkpoint 6418 | -7/Garrison | Triggered checkpoint 6441 | -7/Garrison | Expanded RIF knowledge: Alert ID Control 6470 | -7/Garrison | Garrison Relay disabled 6808 | -7/Garrison | Discovered new exit (range 8) 6880 | -7/Garrison | Triggered checkpoint 6969 | -7/Garrison | Discovered new exit (range 17) 7081 | -7/Garrison | Entered Factory 7081 | -7/Factory | Accompanied by 2 allies 7286 | -7/Factory | Discovered new exit (range 7) 7402 | -7/Factory | Identified exit to Garrison 7403 | -7/Factory | Entered Garrison 7403 | -7/Garrison | Accompanied by 3 allies 7456 | -7/Garrison | Triggered checkpoint 7471 | -7/Garrison | Triggered checkpoint 7472 | -7/Garrison | Triggered checkpoint 7497 | -7/Garrison | Triggered checkpoint 7524 | -7/Garrison | Destroyed 15 combat bots 7551 | -7/Garrison | Discovered new exit (range 12) 7645 | -7/Garrison | Discovered new exit (range 8) 7688 | -7/Garrison | Triggered checkpoint 7705 | -7/Garrison | Expanded RIF knowledge: Structural Interface 7733 | -7/Garrison | Garrison Relay disabled 7840 | -7/Garrison | Spotted B-75 Beast 7851 | -7/Garrison | Allies destroyed B-75 Beast 7964 | -7/Garrison | Discovered new exit (range 10) 8002 | -7/Garrison | Entered Factory 8002 | -6/Factory | Accompanied by 1 ally 8002 | -6/Factory | Evolved 2 slots: Propulsion x1, Utility x1 8252 | -6/Factory | Identified exit to Garrison 8256 | -6/Factory | Entered Garrison 8256 | -6/Garrison | Accompanied by 1 ally 8304 | -6/Garrison | Triggered checkpoint 8323 | -6/Garrison | Garrison Relay disabled 8397 | -6/Garrison | Spotted B-75 Beast 8422 | -6/Garrison | Triggered checkpoint 8428 | -6/Garrison | Triggered checkpoint 8441 | -6/Garrison | Triggered checkpoint 8451 | -6/Garrison | Triggered checkpoint 8487 | -6/Garrison | Destroyed 10 combat bots 8543 | -6/Garrison | Phase Generator disabled 8568 | -6/Garrison | Expanded RIF knowledge: Command Fork 8580 | -6/Garrison | Discovered new exit (range 12) 8707 | -6/Garrison | Discovered new exit (range 12) 8962 | -6/Garrison | Build established: Botlord-Skirmisher 8992 | -6/Garrison | Discovered new exit (range 22) 9008 | -6/Garrison | Triggered checkpoint 9070 | -6/Garrison | Garrison Relay disabled 9167 | -6/Garrison | Entered Factory 9167 | -5/Factory | Evolved 2 slots: Utility x1, Weapon x1 9285 | -5/Factory | Spotted B-75 Beast 9590 | -5/Factory | Discovered new exit (range 11) 9856 | -5/Factory | Discovered new exit (range 24) 10306 | -5/Factory | Identified exit to Garrison 10386 | -5/Factory | Lost 4 parts (1p1n2w) 10400 | -5/Factory | Entered Garrison 10482 | -5/Garrison | Garrison Relay disabled 10502 | -5/Garrison | Triggered checkpoint 10581 | -5/Garrison | Triggered checkpoint 10789 | -5/Garrison | Discovered new exit (range 8) 10803 | -5/Garrison | Spotted B-86 Titan 10894 | -5/Garrison | Triggered checkpoint 10944 | -5/Garrison | Expanded RIF knowledge: Robot Detection 10987 | -5/Garrison | Discovered new exit (range 13) 11175 | -5/Garrison | Garrison Relay disabled 11252 | -5/Garrison | Discovered new exit (range 18) 11386 | -5/Garrison | Entered Factory 11386 | -4/Factory | Accompanied by 3 allies 11386 | -4/Factory | Evolved 2 slots: Utility x2 11680 | -4/Factory | Discovered new exit (range 15) 11894 | -4/Factory | Build established: Botlord-Assassin 11942 | -4/Factory | Spotted B-86 Titan 11984 | -4/Factory | Spotted B-86 Titan 12189 | -4/Factory | Garrison activated, responded to threat 12210 | -4/Factory | Identified exit to Garrison 12213 | -4/Factory | Discovered new exit (range 20) 12218 | -4/Factory | Entered Garrison 12218 | -4/Garrison | Accompanied by 2 allies 12251 | -4/Garrison | Phase Generator disabled 12462 | -4/Garrison | Triggered checkpoint 12462 | -4/Garrison | Triggered checkpoint 12478 | -4/Garrison | Triggered checkpoint 12506 | -4/Garrison | Spotted B-86 Titan 12526 | -4/Garrison | Destroyed B-86 Titan 12547 | -4/Garrison | Destroyed 10 combat bots 12556 | -4/Garrison | Lost 4 parts (1n3u) 12576 | -4/Garrison | Triggered checkpoint 12612 | -4/Garrison | Lost 5 parts (1p1n2u1w) 12613 | -4/Garrison | Found Hvy. Reflective Plating 12630 | -4/Garrison | Triggered checkpoint 12646 | -4/Garrison | Discovered new exit (range 26) 12646 | -4/Garrison | Discovered new exit (range 46) 12646 | -4/Garrison | Discovered new exit (range 52) 12919 | -4/Garrison | Expanded RIF knowledge: Threat Obfuscation 12933 | -4/Garrison | Garrison Relay disabled 12940 | -4/Garrison | Triggered checkpoint 12971 | -4/Garrison | Entered Factory 12971 | -4/Factory | Accompanied by 1 ally 13208 | -4/Factory | Discovered new exit (range 19) 13236 | -4/Factory | Build established: Botlord-Gunner 13471 | -4/Factory | First assault squad dispatched 13675 | -4/Factory | Found Prototype Processor 13675 | -4/Factory | Identified Exp. Signal Interpreter 13775 | -4/Factory | Identified exit to Garrison 13776 | -4/Factory | Entered Garrison 13794 | -4/Garrison | Build established: Scavenger-Skirmisher 13809 | -4/Garrison | Phase Generator disabled 13812 | -4/Garrison | Spotted Executioner 13952 | -4/Garrison | Spotted B-86 Titan 13952 | -4/Garrison | Triggered checkpoint 13982 | -4/Garrison | Destroyed B-86 Titan 13982 | -4/Garrison | Triggered checkpoint 14029 | -4/Garrison | Destroyed 9 combat bots 14062 | -4/Garrison | Triggered checkpoint 14150 | -4/Garrison | Discovered new exit (range 19) 14204 | -4/Garrison | Triggered checkpoint 14302 | -4/Garrison | Triggered checkpoint 14410 | -4/Garrison | Triggered checkpoint 14427 | -4/Garrison | Expanded RIF knowledge: Threat Obfuscation 14476 | -4/Garrison | Garrison Relay disabled 14554 | -4/Garrison | Core integrity fell below 50% 14587 | -4/Garrison | Lost 10 parts (1p2n4u3w) 14782 | -4/Garrison | Triggered checkpoint 14811 | -4/Garrison | Discovered new exit (range 15) 14897 | -4/Garrison | Build established: Botlord-Skirmisher 14900 | -4/Garrison | Triggered checkpoint 14904 | -4/Garrison | Garrison Relay disabled 14974 | -4/Garrison | Entered Research 14974 | -3/Research | Evolved 2 slots: Utility x2 15176 | -3/Research | Discovered new exit (range 20) 15581 | -3/Research | Garrison activated, responded to threat 15616 | -3/Research | Assimilated ARC 8a with formatsys_deep 15724 | -3/Research | First assault squad dispatched 15725 | -3/Research | Identified exit to Garrison 15727 | -3/Research | Entered Garrison 15727 | -3/Garrison | Accompanied by 3 allies 15783 | -3/Garrison | Phase Generator disabled 15819 | -3/Garrison | Lost 3 allies 15847 | -3/Garrison | Garrison Relay disabled 16041 | -3/Garrison | Spotted B-86 Titan 16048 | -3/Garrison | Triggered checkpoint 16051 | -3/Garrison | Triggered checkpoint 16054 | -3/Garrison | Triggered checkpoint 16059 | -3/Garrison | Allies destroyed B-86 Titan 16077 | -3/Garrison | Triggered checkpoint 16091 | -3/Garrison | Found Hvy. Reflective Plating 16107 | -3/Garrison | Spotted B-86 Titan 16128 | -3/Garrison | Spotted B-86 Titan 16187 | -3/Garrison | Discovered new exit (range 8) 16223 | -3/Garrison | Garrison Relay disabled 16338 | -3/Garrison | Discovered new exit (range 19) 16346 | -3/Garrison | Spotted B-86 Titan 16430 | -3/Garrison | Destroyed B-86 Titan 16434 | -3/Garrison | Lost 6 allies 16450 | -3/Garrison | Lost 3 parts (1p1u1w) 16471 | -3/Garrison | Found Gamma Bomb Array 16621 | -3/Garrison | Discovered new exit (range 21) 16669 | -3/Garrison | Triggered checkpoint 16669 | -3/Garrison | Triggered checkpoint 16832 | -3/Garrison | Found embedded Infiltrators 16888 | -3/Garrison | Garrison Relay disabled 17044 | -3/Garrison | Triggered checkpoint 17083 | -3/Garrison | Triggered checkpoint 17087 | -3/Garrison | Garrison Relay disabled 17125 | -3/Garrison | Expanded RIF knowledge: Program Shield 17332 | -3/Garrison | Entered Research 17332 | -2/Research | Accompanied by 4 allies 17332 | -2/Research | Evolved 2 slots: Utility x2 17377 | -2/Research | Identified exit to DSF 17377 | -2/Research | Entered DSF 17377 | -2/DSF | Accompanied by 4 allies 17424 | -2/DSF | Additional patrols routed to DSF 17517 | -2/DSF | Assimilated ARC 9a with formatsys_deep 17602 | -2/DSF | Assimilated ARC 9b with formatsys_deep 17693 | -2/DSF | Discovered new exit (range 14) 17735 | -2/DSF | Lost 4 allies 17771 | -2/DSF | Entered Access 17771 | -1/Access | Accompanied by 4 allies 17771 | -1/Access | Evolved 2 slots: Utility x2 17931 | -1/Access | Build established: Botlord-Gunner 17962 | -1/Access | Lost 4 allies 18370 | -1/Access | Build established: Botlord-Skirmisher 18453 | -1/Access | Discovered new exit (range 4) 18459 | *** | Escaped! Last Messages --------------- 18316_ Destroyed Imp. Antigrav System. 18316_ P-80 Master knocked back. 18316_ P-80 Master destroyed. 18318_ Door malfunctions. 18320_ P-80 Master suffers critical hit (Blast). 18320_ Destroyed Adv. Remote Datajack. 18320_ P-80 Master destroyed. 18324_ Acquired 43 matter. 18324_ Acquired 18 matter. 18324_ Acquired 5 matter. 18324_ Acquired 4 matter. 18328_ Ended siege mode. 18347_ Dropped Imp. Heavy Treads. 18347_ Acquired Arm. Heavy Treads. 18387_ Acquired Focal Shield. 18389_ Dropped Com. HERF Cannon. 18391_ Acquired Drone Bay. 18396_ Connecting with Terminal... 18453_ Main Access Shell breached. 18453_ EXIT=FOUND Map ----- +----------------------------------------------------+ | ?????????????????????????????????????????????????? | | ?????????????????????????????????????????????????? | | ?????????????????????????????????????????????????? | | ?????????????????????????????????????????????????? | | ?????????????????????????????????????????????????? | | ?????????????????????????????????????????????????? | | ?????????????????????????????????????????????????? | | ?????????????????????????????????????????????????? | | ?????????????????????????????????????????????????? | | ?????????????????????????????????????????????????? | | ?????????????????????????????????????????????????? | | ?????????????????????????????????????????????????? | | ?????????????????????????????????????????????????? | | ?????????????????????? ??????????????????????????? | | ?????????????????????BB????BB ??? ???????????????? | | ?????????????????????BB? ?BB?#??? ??????????????? | | ???????????????????????? ? ? ????? ???????????? | | ????????????????#???????"?""?"#?? ??????????????? | | ?????????????????????"?"??"""?#?#???? ???????????? | | ?????????????????#?????""?""??#?# ??? ??????????? | | ?????????????????#?????????"""#?? ?"? ??#????????? | | ?????????????????#??? ? ##? ?""? ?#????????? | | ?????????????????##?? """""" ### "???#? ???????? | | ?????????????#??##?? " " ##?? ?" +? ? ?????? | | ???????????????#?#?? " "" " #?# ?" ? ?? ?? ??? | | ????????????????#?## " "@ " #?# ? ? # ?##?????? | | ????????????????#??? " #??? ??? #?????????? | | ????????????????#?## """""" #?# ?? ??#?#???????? | | ?????????????##?#### ##########+###?#???? | | ?????????????#?#??## ;;" ##?????? | | ??????????#??#?##?#"""""""""""""# #??????? | | ?????????#??#?######"" "## #??????? | | ?????????????###?###"" ### " " ##?????? | | ???????#??#??#?##??#"" #?# ""R"" ##?????? | | ?? ???##?##?#??##T ###= """"" #??????? | | ? ? ?#??????#?#???#"" ### !#??#???? | | ####?#??#?####"" ### ###????? | | "?? ?# #########"" #####/########?????? | | ?" + T" ?????? | | ""??? # "" ????? | | """? # #########"#####################+??????? | | "" ## #########"###?##??#?###???? ???????????? | | "" ## # !! ####?###?##?#???? ??????????? | | ##? # ] ####??#???####? ? ????????????? | | ## + ""##?#?###??####????????????????? | | ########[ # ""#####?###?#???#???????????????? | | = *%|% # T"##?#??###??#??????????????????? | | !%[ # ""#???###?#?#?#?????????????????? | | ###"/"##### ""##??#?###?????????????????????? | | # "" ###?###??##???????????????????? | +----------------------------------------------------+ Best States ------------- Heat Dissipation 62 Energy Generation 25 Energy Capacity 350 Matter Stores 550 Matter Capacity 550 Sight Range 22 Robot Scan Range 20 Terrain Scan Range 24 Terrain Scan Density 310 Armor Coverage 1650 Resistance: KI 25 Resistance: TH 25 Resistance: EX 50 Weapon Cycling 15 Evasion (%) 57 Targeting Accuracy 22 Launcher Accuracy 40 Target Analysis 6 Core Analysis 6 Recoil Reduction 4 Offensive Hacking 10 Defensive Hacking 10 Relay Coupler Types 7 Relay Coupler Value 138 Item Schematics ----------------- None Robot Schematics ------------------ None Fabricated ------------ Nothing Alien Tech Used ----------------- None Achievements -------------- None Challenges ------------ None Game ------ Seed WardroneRagnarokProtection Manual? 0 Play Time 04:27:01 Cumulative 1013.5 hours Start 2024.01.28 @ 16:36:13 End 2024.01.28 @ 23:34:51 Sessions 7 Manual Loads 0 Difficulty Rogue Special Mode None Game No. 513 Rogue 386 Adventurer 125 Explorer 2 Win Type 0 Total 122 Types 96/9/8/3/3/0/0/2/1 Lore% 82 Gallery% 89 Achievement% 83 Wizard Run 0 Options --------- ASCII 0 Keyboard 1 Movement Numpad Keybinds 0 Fullscreen 1 Font 36/TerminusFine Map View 76x50 Zoom Use 0% Tactical HUD 1 Map Filters NONE Filters NONE Steam 1 RUN: 6316618b-2785-41fc-a6f5-f925b13df656